[Event "EYTCC Open U18 2022"]
[Site "Thessaloniki"]
[Date "2022.07.12"]
[Round "1.25"]
[White "Filip, Andrei"]
[Black "Pekkul, Arda"]
[Result "1-0"]
[ECO "B40"]
[WhiteElo "2344"]
[BlackElo "1599"]
[Annotator "ChessBase"]
[PlyCount "39"]
[EventDate "2022.07.12"]
[EventType "team-tourn"]
[EventCountry "GRE"]
[SourceTitle "playchess.com"]
[Source "ChessBase"]
[SourceQuality "1"]
[WhiteTeam "Romania"]
[BlackTeam "Turkey"]
[WhiteTeamCountry "ROU"]
[BlackTeamCountry "TUR"]
[TimeControl "40/5400+30:1800+30"]

1. e4 {[%emt 0:00:07]} c5 {[%emt 0:00:07]} 2. Nf3 {[%emt 0:00:16]} e6 {[%emt 0:00:13]} 3. g3 {[%emt 0:00:05]} Nc6 {[%emt 0:00:22]} 4. Bg2 {[%emt 0:00:06]} Nf6 {[%emt 0:00:16]} 5. Qe2 {[%emt 0:00:09]} e5 {[%emt 0:00:10]} 6. O-O {[%emt 0:00:13]} d6 {[%emt 0:00:42]} 7. c3 {[%emt 0:00:13]} Be7 {[%emt 0:00:54]} 8. Rd1 {[%emt 0:00:21]} Bg4 {[%emt 0:12:58]} 9. Na3 {[%emt 0:03:43]} O-O {[%emt 0:07:39]} 10. Nc2 {[%emt 0:06:33]} d5 {[%emt 0:10:09]} 11. exd5 {[%emt 0:06:41]} Nd4 {[%emt 0:00:07]} 12. cxd4 {[%emt 0:03:26]} e4 {[%emt 0:00:06]} 13. dxc5 {[%emt 0:30:10]} Bxc5 {[%emt 0:05:33]} 14. d4 {[%emt 0:04:08]} Qxd5 {[%emt 0:01:46]} 15. dxc5 {[%emt 0:02:48]} Qh5 {[%emt 0:00:38]} 16. Nce1 {[%emt 0:02:38]} Rae8 {[%emt 0:11:16]} 17. Be3 {[%emt 0:02:34]} Nd5 {[%emt 0:04:29]} 18. h3 {[%emt 0:08:06]} Nxe3 {[%emt 0:05:15]} 19. Qxe3 {[%emt 0:00:35]} Bxf3 {[%emt 0:02:07]} 20. Nxf3 {[%emt 0:00:06]} 1-0

[Event "EYTCC Open U18 2022"]
[Site "Thessaloniki"]
[Date "2022.07.12"]
[Round "1.26"]
[White "Atis, Hasan"]
[Black "Stepanencu, Nicodim-Cosmin"]
[Result "1/2-1/2"]
[ECO "B07"]
[WhiteElo "1956"]
[BlackElo "2277"]
[Annotator "ChessBase"]
[PlyCount "126"]
[EventDate "2022.07.12"]
[EventType "team-tourn"]
[EventCountry "GRE"]
[SourceTitle "playchess.com"]
[Source "ChessBase"]
[SourceQuality "1"]
[WhiteTeam "Turkey"]
[BlackTeam "Romania"]
[WhiteTeamCountry "TUR"]
[BlackTeamCountry "ROU"]
[TimeControl "40/5400+30:1800+30"]

1. e4 {[%emt 0:00:02]} d6 {[%emt 0:00:10]} 2. d4 {[%emt 0:00:11]} Nf6 {[%emt 0:00:06]} 3. Nc3 {[%emt 0:00:02]} e5 {[%emt 0:00:08]} 4. dxe5 {[%emt 0:03:14]} dxe5 {[%emt 0:00:07]} 5. Qxd8+ {[%emt 0:00:20]} Kxd8 {[%emt 0:00:02]} 6. Bg5 {[%emt 0:00:26]} Be6 {[%emt 0:00:15]} 7. O-O-O+ {[%emt 0:09:00]} Nbd7 {[%emt 0:00:07]} 8. f3 {[%emt 0:16:30]} c6 {[%emt 0:02:54]} 9. g3 {[%emt 0:07:59]} Bb4 {[%emt 0:19:58]} 10. Bh3 {[%emt 0:07:19]} Bxc3 {[%emt 0:05:53]} 11. bxc3 {[%emt 0:00:13]} Kc7 {[%emt 0:16:38]} 12. Bxe6 {[%emt 0:04:27]} fxe6 {[%emt 0:00:02]} 13. Ne2 {[%emt 0:30:17]} Nb6 {[%emt 0:19:17]} 14. Bxf6 {[%emt 0:10:05]} gxf6 {[%emt 0:00:01]} 15. f4 {[%emt 0:00:01]} Nc4 {[%emt 0:13:13]} 16. Rd3 {[%emt 0:01:24]} Rhe8 {[%emt 0:04:38]} 17. Rf1 {[%emt 0:01:46]} Re7 {[%emt 0:00:01]} 18. f5 {[%emt 0:04:32]} Rg8 {[%emt 0:02:54]} 19. fxe6 {[%emt 0:01:04]} Rxe6 {[%emt 0:00:02]} 20. h3 {[%emt 0:00:00]} h5 {[%emt 0:01:30]} 21. Rf5 {[%emt 0:00:35]} Rh8 {[%emt 0:00:01]} 22. Rf2 {[%emt 0:01:09]} a5 {[%emt 0:00:01]} 23. Ng1 {[%emt 0:00:50]} Rg8 {[%emt 0:02:48]} 24. Rf5 {[%emt 0:00:10]} h4 {[%emt 0:02:02]} 25. g4 {[%emt 0:00:01]} Nd6 {[%emt 0:04:34]} 26. Rh5 {[%emt 0:01:03]} Nxe4 {[%emt 0:00:05]} 27. Rxh4 {[%emt 0:00:29]} f5 {[%emt 0:00:10]} 28. Nf3 {[%emt 0:00:44]} f4 {[%emt 0:00:03]} 29. Rh7+ {[%emt 0:00:35]} Kb6 {[%emt 0:00:01]} 30. Rdd7 {[%emt 0:00:30]} Nc5 {[%emt 0:00:01]} 31. Rdf7 {[%emt 0:00:29]} Ree8 {[%emt 0:00:38]} 32. Nd2 {[%emt 0:00:23]} Rgf8 {[%emt 0:05:28]} 33. Rxf8 {[%emt 0:00:38]} Rxf8 {[%emt 0:00:01]} 34. Re7 {[%emt 0:00:01]} Rh8 {[%emt 0:03:01]} 35. Rxe5 {[%emt 0:00:25]} Na4 {[%emt 0:00:01]} 36. Nc4+ {[%emt 0:00:58]} Kc7 {[%emt 0:00:01]} 37. Nxa5 {[%emt 0:00:37]} Nxc3 {[%emt 0:01:27]} 38. Kb2 {[%emt 0:00:28]} Nd1+ {[%emt 0:00:39]} 39. Kc1 {[%emt 0:00:21]} Nc3 {[%emt 0:00:26]} 40. Kb2 {[%emt 0:00:00]} Nd5 {[%emt 0:00:00]} 41. Rh5 {[%emt 0:02:00]} Rf8 {[%emt 0:01:22]} 42. Nc4 {[%emt 0:06:13]} f3 {[%emt 0:13:55]} 43. Nd2 {[%emt 0:01:20]} f2 {[%emt 0:00:54]} 44. Nf1 {[%emt 0:00:07]} Rf4 {[%emt 0:01:21]} 45. a3 {[%emt 0:06:02]} Ne7 {[%emt 0:02:10]} 46. Rh6 {[%emt 0:08:11]} Nd5 {[%emt 0:03:06]} 47. g5 {[%emt 0:00:55]} Re4 {[%emt 0:00:38]} 48. Rh7+ {[%emt 0:02:20]} Kd6 {[%emt 0:01:06]} 49. Rf7 {[%emt 0:01:45]} Nf4 {[%emt 0:00:25]} 50. g6 {[%emt 0:04:34]} Ke6 {[%emt 0:00:44]} 51. Rf8 {[%emt 0:01:39]} Nxg6 {[%emt 0:00:14]} 52. Rxf2 {[%emt 0:00:03]} Rh4 {[%emt 0:00:04]} 53. Re2+ {[%emt 0:01:19]} Ne5 {[%emt 0:02:05]} 54. Re3 {[%emt 0:01:02]} Kd5 {[%emt 0:00:09]} 55. Nd2 {[%emt 0:00:30]} Nc4+ {[%emt 0:06:22]} 56. Nxc4 {[%emt 0:00:02]} Kxc4 {[%emt 0:00:06]} 57. Rb3 {[%emt 0:00:58]} c5 {[%emt 0:01:28]} 58. Rxb7 {[%emt 0:00:39]} Rxh3 {[%emt 0:00:01]} 59. Rb3 {[%emt 0:00:31]} Rh8 {[%emt 0:01:15]} 60. a4 {[%emt 0:00:30]} Ra8 {[%emt 0:00:01]} 61. Ka3 {[%emt 0:00:17]} Ra5 {[%emt 0:00:14]} 62. Rf3 {[%emt 0:00:41]} Ra7 {[%emt 0:00:19]} 63. Rb3 {[%emt 0:00:31]} Ra5 {[%emt 0:00:02]} 1/2-1/2

[Event "EYTCC Open U18 2022"]
[Site "Thessaloniki"]
[Date "2022.07.12"]
[Round "1.27"]
[White "Antonica, Dragos-Andrei"]
[Black "Aydogdu, Selcan Ayberk"]
[Result "1-0"]
[ECO "E14"]
[WhiteElo "2355"]
[BlackElo "1902"]
[Annotator "ChessBase"]
[PlyCount "59"]
[EventDate "2022.07.12"]
[EventType "team-tourn"]
[EventCountry "GRE"]
[SourceTitle "playchess.com"]
[Source "ChessBase"]
[SourceQuality "1"]
[WhiteTeam "Romania"]
[BlackTeam "Turkey"]
[WhiteTeamCountry "ROU"]
[BlackTeamCountry "TUR"]
[TimeControl "40/5400+30:1800+30"]

1. Nf3 {[%emt 0:00:04]} e6 {[%emt 0:00:25]} 2. c4 {[%emt 0:00:22]} d5 {[%emt 0:00:18]} 3. e3 {[%emt 0:00:07]} Nf6 {[%emt 0:00:29]} 4. b3 {[%emt 0:00:21]} c5 {[%emt 0:01:11]} 5. Bb2 {[%emt 0:01:22]} Be7 {[%emt 0:01:07]} 6. cxd5 {[%emt 0:02:51]} exd5 {[%emt 0:01:09]} 7. Be2 {[%emt 0:10:54]} O-O {[%emt 0:01:44]} 8. O-O {[%emt 0:00:14]} b6 {[%emt 0:05:14]} 9. d4 {[%emt 0:01:25]} Nbd7 {[%emt 0:00:55]} 10. Nc3 {[%emt 0:03:07]} Bb7 {[%emt 0:02:19]} 11. Rc1 {[%emt 0:03:58]} Rc8 {[%emt 0:03:11]} 12. Bd3 {[%emt 0:03:10]} Ne4 {[%emt 0:08:32]} 13. Ne2 {[%emt 0:03:59]} Re8 {[%emt 0:13:09]} 14. Ng3 {[%emt 0:03:12]} cxd4 {[%emt 0:11:33]} 15. Rxc8 {[%emt 0:11:52]} Qxc8 {[%emt 0:00:53]} 16. Nxd4 {[%emt 0:00:27]} Ndc5 {[%emt 0:12:10]} 17. Bb5 {[%emt 0:04:15]} Nxg3 {[%emt 0:15:35]} 18. fxg3 {[%emt 0:06:35]} Ba6 {[%emt 0:03:35]} 19. Qh5 {[%emt 0:05:41]} g6 {[%emt 0:04:21]} 20. Qxd5 {[%emt 0:01:47]} Ne6 {[%emt 0:05:13]} 21. Nxe6 {[%emt 0:04:48]} Bxb5 {[%emt 0:02:18]} 22. Qxb5 {[%emt 0:01:03]} Bd6 {[%emt 0:01:57]} 23. Nf4 {[%emt 0:01:57]} Rxe3 {[%emt 0:01:20]} 24. Nd5 {[%emt 0:00:55]} Re6 {[%emt 0:00:28]} 25. Nf6+ {[%emt 0:00:23]} Kf8 {[%emt 0:00:21]} 26. Nxh7+ {[%emt 0:00:15]} Kg8 {[%emt 0:00:10]} 27. Nf6+ {[%emt 0:01:59]} Kf8 {[%emt 0:00:06]} 28. Qd3 {[%emt 0:02:10]} Qc6 {[%emt 0:01:17]} 29. Qf3 {[%emt 0:05:01]} Bc5+ {[%emt 0:00:44]} 30. Kh1 {[%emt 0:00:09]} 1-0

[Event "EYTCC Open U18 2022"]
[Site "Thessaloniki"]
[Date "2022.07.12"]
[Round "1.28"]
[White "Turk, Talha Gunes"]
[Black "Cnejev, Vladimir-Alexandru"]
[Result "0-1"]
[ECO "C54"]
[WhiteElo "1597"]
[BlackElo "2172"]
[Annotator "ChessBase"]
[PlyCount "66"]
[EventDate "2022.07.12"]
[EventType "team-tourn"]
[EventCountry "GRE"]
[SourceTitle "playchess.com"]
[Source "ChessBase"]
[SourceQuality "1"]
[WhiteTeam "Turkey"]
[BlackTeam "Romania"]
[WhiteTeamCountry "TUR"]
[BlackTeamCountry "ROU"]
[TimeControl "40/5400+30:1800+30"]

1. e4 {[%emt 0:00:06]} e5 {[%emt 0:00:14]} 2. Nf3 {[%emt 0:00:17]} Nc6 {[%emt 0:00:07]} 3. Bc4 {[%emt 0:00:18]} Bc5 {[%emt 0:00:07]} 4. O-O {[%emt 0:02:02]} d6 {[%emt 0:00:34]} 5. h3 {[%emt 0:01:54]} Nf6 {[%emt 0:00:14]} 6. d3 {[%emt 0:01:02]} h6 {[%emt 0:04:16]} 7. c3 {[%emt 0:03:11]} Bb6 {[%emt 0:00:22]} 8. Re1 {[%emt 0:01:41]} g5 {[%emt 0:03:25]} 9. g4 {[%emt 0:26:20]} h5 {[%emt 0:40:38]} 10. Nxg5 {[%emt 0:18:26]} hxg4 {[%emt 0:00:17]} 11. Nxf7 {[%emt 0:01:20]} Qe7 {[%emt 0:00:22]} 12. Nxh8 {[%emt 0:18:04]} Qh7 {[%emt 0:12:43]} 13. Be3 {[%emt 0:11:04]} Qxh3 {[%emt 0:01:32]} 14. Bxb6 {[%emt 0:01:12]} g3 {[%emt 0:00:36]} 15. Qf3 {[%emt 0:09:57]} Qh2+ {[%emt 0:00:11]} 16. Kf1 {[%emt 0:00:01]} Bh3+ {[%emt 0:00:25]} 17. Ke2 {[%emt 0:00:16]} Bg4 {[%emt 0:00:04]} 18. Be3 {[%emt 0:01:30]} Bxf3+ {[%emt 0:01:08]} 19. Kxf3 {[%emt 0:00:08]} g2 {[%emt 0:05:40]} 20. Nd2 {[%emt 0:00:47]} Qh3+ {[%emt 0:00:36]} 21. Ke2 {[%emt 0:00:02]} Qxh8 {[%emt 0:00:09]} 22. Rg1 {[%emt 0:00:16]} Qh3 {[%emt 0:00:24]} 23. Nf3 {[%emt 0:00:52]} Qg4 {[%emt 0:01:15]} 24. Rac1 {[%emt 0:01:12]} O-O-O {[%emt 0:03:41]} 25. Bb3 {[%emt 0:00:31]} Rf8 {[%emt 0:00:40]} 26. Bd1 {[%emt 0:00:14]} Nh5 {[%emt 0:01:17]} 27. Kd2 {[%emt 0:00:31]} Rxf3 {[%emt 0:00:08]} 28. Bxf3 {[%emt 0:00:04]} Qxf3 {[%emt 0:00:08]} 29. b4 {[%emt 0:00:39]} Nf4 {[%emt 0:00:16]} 30. Bxf4 {[%emt 0:00:11]} Qxf2+ {[%emt 0:00:08]} 31. Kd1 {[%emt 0:00:12]} Qxg1+ {[%emt 0:00:06]} 32. Kc2 {[%emt 0:00:07]} Qf2+ {[%emt 0:00:06]} 33. Bd2 {[%emt 0:00:03]} g1=Q {[%emt 0:00:08]} 0-1

[Event "EYTCC Open U18 2022"]
[Site "Thessaloniki"]
[Date "2022.07.12"]
[Round "1.29"]
[White "Stoimenidis, Dimitrios"]
[Black "Trost, Edvin"]
[Result "0-1"]
[ECO "D02"]
[WhiteElo "1993"]
[BlackElo "2345"]
[Annotator "ChessBase"]
[PlyCount "64"]
[EventDate "2022.07.12"]
[EventType "team-tourn"]
[EventCountry "GRE"]
[SourceTitle "playchess.com"]
[Source "ChessBase"]
[SourceQuality "1"]
[WhiteTeam "Greece"]
[BlackTeam "Sweden"]
[WhiteTeamCountry "GRE"]
[BlackTeamCountry "SWE"]
[TimeControl "40/5400+30:1800+30"]

1. d4 {[%emt 0:00:04]} Nf6 {[%emt 0:00:48]} 2. Bf4 {[%emt 0:00:08]} d5 {[%emt 0:01:53]} 3. e3 {[%emt 0:01:02]} c5 {[%emt 0:00:52]} 4. Nf3 {[%emt 0:02:39]} Nc6 {[%emt 0:00:06]} 5. c3 {[%emt 0:01:40]} Qb6 {[%emt 0:01:49]} 6. Qc2 {[%emt 0:00:25]} g6 {[%emt 0:04:58]} 7. Nbd2 {[%emt 0:00:51]} Bg7 {[%emt 0:00:18]} 8. Be2 {[%emt 0:00:39]} O-O {[%emt 0:00:59]} 9. O-O {[%emt 0:00:26]} Nh5 {[%emt 0:06:40]} 10. Bg5 {[%emt 0:04:13]} h6 {[%emt 0:00:18]} 11. Bh4 {[%emt 0:00:27]} g5 {[%emt 0:00:34]} 12. Ne1 {[%emt 0:02:54]} gxh4 {[%emt 0:01:08]} 13. Bxh5 {[%emt 0:00:17]} h3 {[%emt 0:00:05]} 14. Qb3 {[%emt 0:19:14]} hxg2 {[%emt 0:02:48]} 15. Nxg2 {[%emt 0:00:34]} e5 {[%emt 0:02:12]} 16. Qxd5 {[%emt 0:16:02]} cxd4 {[%emt 0:01:05]} 17. Nc4 {[%emt 0:03:41]} Qa6 {[%emt 0:06:03]} 18. Nd6 {[%emt 0:11:18]} Be6 {[%emt 0:00:24]} 19. Qf3 {[%emt 0:03:54]} Ne7 {[%emt 0:02:33]} 20. Ne4 {[%emt 0:01:58]} Bd5 {[%emt 0:00:34]} 21. c4 {[%emt 0:02:26]} Bc6 {[%emt 0:03:52]} 22. Nf6+ {[%emt 0:03:39]} Kh8 {[%emt 0:00:11]} 23. e4 {[%emt 0:01:23]} Qxc4 {[%emt 0:00:25]} 24. Bg4 {[%emt 0:00:44]} Qb4 {[%emt 0:07:13]} 25. Nh4 {[%emt 0:02:52]} Qd2 {[%emt 0:00:20]} 26. Nh5 {[%emt 0:08:12]} Qg5 {[%emt 0:03:06]} 27. Nxg7 {[%emt 0:01:03]} Qxg7 {[%emt 0:03:02]} 28. Qg3 {[%emt 0:05:50]} Rg8 {[%emt 0:01:08]} 29. f3 {[%emt 0:01:12]} Bxe4 {[%emt 0:01:52]} 30. Rae1 {[%emt 0:02:24]} f5 {[%emt 0:00:45]} 31. Rxe4 {[%emt 0:02:20]} fxe4 {[%emt 0:00:19]} 32. fxe4 {[%emt 0:00:34]} Qxg4 {[%emt 0:00:09]} 0-1

[Event "EYTCC Open U18 2022"]
[Site "Thessaloniki"]
[Date "2022.07.12"]
[Round "1.30"]
[White "Olsson, William"]
[Black "Karamichos, Michail"]
[Result "1-0"]
[ECO "A13"]
[WhiteElo "2284"]
[BlackElo "1839"]
[Annotator "ChessBase"]
[PlyCount "75"]
[EventDate "2022.07.12"]
[EventType "team-tourn"]
[EventCountry "GRE"]
[SourceTitle "playchess.com"]
[Source "ChessBase"]
[SourceQuality "1"]
[WhiteTeam "Sweden"]
[BlackTeam "Greece"]
[WhiteTeamCountry "SWE"]
[BlackTeamCountry "GRE"]
[TimeControl "40/5400+30:1800+30"]

1. c4 {[%emt 0:00:04]} e6 {[%emt 0:00:26]} 2. Nf3 {[%emt 0:00:07]} d5 {[%emt 0:00:12]} 3. e3 {[%emt 0:00:02]} Nf6 {[%emt 0:00:53]} 4. b3 {[%emt 0:00:06]} Bd6 {[%emt 0:00:57]} 5. Bb2 {[%emt 0:00:05]} Nbd7 {[%emt 0:00:40]} 6. Nc3 {[%emt 0:00:05]} O-O {[%emt 0:00:36]} 7. Be2 {[%emt 0:00:06]} b6 {[%emt 0:00:52]} 8. O-O {[%emt 0:00:58]} Bb7 {[%emt 0:00:12]} 9. Qc2 {[%emt 0:00:45]} a6 {[%emt 0:01:15]} 10. d3 {[%emt 0:04:35]} c5 {[%emt 0:02:37]} 11. a4 {[%emt 0:02:24]} Nb8 {[%emt 0:16:17]} 12. cxd5 {[%emt 0:02:14]} exd5 {[%emt 0:00:52]} 13. d4 {[%emt 0:01:55]} Nc6 {[%emt 0:02:14]} 14. Rfd1 {[%emt 0:03:56]} cxd4 {[%emt 0:07:08]} 15. Nxd4 {[%emt 0:02:57]} Nxd4 {[%emt 0:01:31]} 16. Rxd4 {[%emt 0:01:45]} Qc7 {[%emt 0:03:24]} 17. Rh4 {[%emt 0:02:48]} Ne4 {[%emt 0:07:29]} 18. Bd3 {[%emt 0:20:03]} f5 {[%emt 0:07:29]} 19. f3 {[%emt 0:09:49]} Qe7 {[%emt 0:07:28]} 20. Rh5 {[%emt 0:04:25]} Nf6 {[%emt 0:06:07]} 21. Rxf5 {[%emt 0:01:28]} Qxe3+ {[%emt 0:00:44]} 22. Kh1 {[%emt 0:00:37]} Qh6 {[%emt 0:11:26]} 23. g4 {[%emt 0:05:34]} d4 {[%emt 0:05:45]} 24. g5 {[%emt 0:05:17]} Qh3 {[%emt 0:02:05]} 25. Bc4+ {[%emt 0:07:19]} Kh8 {[%emt 0:00:09]} 26. Bf1 {[%emt 0:00:15]} Bxf3+ {[%emt 0:02:44]} 27. Rxf3 {[%emt 0:00:39]} Qxf3+ {[%emt 0:00:05]} 28. Bg2 {[%emt 0:00:05]} Qf4 {[%emt 0:04:46]} 29. Bxa8 {[%emt 0:01:58]} Ng4 {[%emt 0:01:39]} 30. Ne4 {[%emt 0:00:25]} Rxa8 {[%emt 0:06:05]} 31. Bxd4 {[%emt 0:06:40]} Re8 {[%emt 0:00:47]} 32. Nxd6 {[%emt 0:03:57]} Qxd6 {[%emt 0:01:04]} 33. Rd1 {[%emt 0:01:42]} Qd5+ {[%emt 0:00:21]} 34. Kg1 {[%emt 0:00:11]} Qf7 {[%emt 0:00:39]} 35. Rf1 {[%emt 0:05:22]} Qd7 {[%emt 0:00:29]} 36. Qc4 {[%emt 0:00:43]} b5 {[%emt 0:00:29]} 37. Qc5 {[%emt 0:00:37]} bxa4 {[%emt 0:00:30]} 38. Qf8+ {[%emt 0:00:31]} 1-0

[Event "EYTCC Open U18 2022"]
[Site "Thessaloniki"]
[Date "2022.07.12"]
[Round "1.31"]
[White "Tagkaloglou, Savvas Stefanos"]
[Black "Wernberg, Hugo"]
[Result "0-1"]
[ECO "E36"]
[WhiteElo "1724"]
[BlackElo "2316"]
[Annotator "ChessBase"]
[PlyCount "106"]
[EventDate "2022.07.12"]
[EventType "team-tourn"]
[EventCountry "GRE"]
[SourceTitle "playchess.com"]
[Source "ChessBase"]
[SourceQuality "1"]
[WhiteTeam "Greece"]
[BlackTeam "Sweden"]
[WhiteTeamCountry "GRE"]
[BlackTeamCountry "SWE"]
[TimeControl "40/5400+30:1800+30"]

1. d4 {[%emt 0:11:51]} Nf6 {[%emt 0:00:27]} 2. c4 {[%emt 0:00:05]} e6 {[%emt 0:00:25]} 3. Nc3 {[%emt 0:00:07]} Bb4 {[%emt 0:00:14]} 4. Qc2 {[%emt 0:00:11]} d5 {[%emt 0:01:31]} 5. a3 {[%emt 0:00:24]} Be7 {[%emt 0:00:58]} 6. Nf3 {[%emt 0:06:02]} b6 {[%emt 0:05:59]} 7. e4 {[%emt 0:11:16]} dxe4 {[%emt 0:06:53]} 8. Nxe4 {[%emt 0:00:06]} Nbd7 {[%emt 0:00:54]} 9. Bd3 {[%emt 0:04:35]} Bb7 {[%emt 0:06:31]} 10. b4 {[%emt 0:15:29]} c5 {[%emt 0:11:20]} 11. dxc5 {[%emt 0:00:21]} bxc5 {[%emt 0:00:28]} 12. b5 {[%emt 0:00:55]} a6 {[%emt 0:11:11]} 13. bxa6 {[%emt 0:06:00]} Rxa6 {[%emt 0:03:17]} 14. O-O {[%emt 0:03:29]} Qa8 {[%emt 0:07:41]} 15. Re1 {[%emt 0:04:06]} O-O {[%emt 0:04:45]} 16. Bb2 {[%emt 0:07:46]} h6 {[%emt 0:22:40]} 17. Nfd2 Ne8 18. f3 f5 {[%emt 0:04:03]} 19. Nc3 {[%emt 0:02:53]} Bf6 {[%emt 0:03:05]} 20. Nb5 {[%emt 0:01:05]} Qb8 {[%emt 0:04:07]} 21. Bxf6 {[%emt 0:03:31]} Nexf6 {[%emt 0:00:35]} 22. Nb3 {[%emt 0:03:09]} Rc8 {[%emt 0:04:17]} 23. Qf2 {[%emt 0:02:37]} g6 {[%emt 0:03:22]} 24. Qd2 {[%emt 0:04:55]} Kg7 {[%emt 0:01:25]} 25. f4 {[%emt 0:04:00]} e5 {[%emt 0:02:10]} 26. fxe5 {[%emt 0:00:28]} Nxe5 {[%emt 0:00:17]} 27. Bf1 {[%emt 0:02:08]} Re6 {[%emt 0:03:26]} 28. h3 {[%emt 0:02:46]} Ne4 {[%emt 0:00:33]} 29. Qb2 {[%emt 0:00:35]} Kg8 {[%emt 0:00:58]} 30. Nc3 {[%emt 0:00:57]} Ng5 {[%emt 0:00:47]} 31. Nd5 {[%emt 0:02:19]} Nef3+ {[%emt 0:01:12]} 32. gxf3 {[%emt 0:00:08]} Qg3+ {[%emt 0:00:32]} 33. Qg2 {[%emt 0:00:39]} Nxf3+ {[%emt 0:00:26]} 34. Kh1 {[%emt 0:00:23]} Qxg2+ {[%emt 0:00:26]} 35. Bxg2 {[%emt 0:00:16]} Nxe1 {[%emt 0:00:15]} 36. Nf6+ {[%emt 0:00:24]} Rxf6 {[%emt 0:00:20]} 37. Bxb7 {[%emt 0:00:05]} Rb8 {[%emt 0:00:47]} 38. Bd5+ {[%emt 0:00:18]} Kg7 {[%emt 0:00:29]} 39. Nxc5 {[%emt 0:00:20]} Re8 {[%emt 0:00:54]} 40. Rc1 {[%emt 0:00:58]} Re3 {[%emt 0:00:27]} 41. Rb1 {[%emt 0:00:55]} g5 {[%emt 0:10:03]} 42. Kg1 {[%emt 0:01:31]} Nd3 {[%emt 0:06:04]} 43. Rb7+ {[%emt 0:02:22]} Kg6 {[%emt 0:00:18]} 44. Nd7 {[%emt 0:00:13]} Rd6 {[%emt 0:01:39]} 45. Nb6 {[%emt 0:01:27]} Kh5 {[%emt 0:02:59]} 46. a4 {[%emt 0:00:57]} Kh4 {[%emt 0:02:14]} 47. Kg2 {[%emt 0:01:02]} Nf4+ {[%emt 0:01:52]} 48. Kf2 {[%emt 0:00:10]} Rb3 {[%emt 0:01:33]} 49. a5 {[%emt 0:00:20]} Nxd5 {[%emt 0:00:53]} 50. cxd5 {[%emt 0:00:03]} Rxd5 {[%emt 0:00:57]} 51. a6 {[%emt 0:00:16]} Ra5 {[%emt 0:01:56]} 52. Nd7 {[%emt 0:00:19]} Ra2+ {[%emt 0:00:34]} 53. Ke1 {[%emt 0:00:06]} Rxh3 {[%emt 0:00:41]} 0-1

[Event "EYTCC Open U18 2022"]
[Site "Thessaloniki"]
[Date "2022.07.12"]
[Round "1.32"]
[White "Soderstrom, Adrian"]
[Black "Karakotsios, Konstantinos"]
[Result "1-0"]
[ECO "C18"]
[WhiteElo "2292"]
[BlackElo "1376"]
[Annotator "ChessBase"]
[PlyCount "61"]
[EventDate "2022.07.12"]
[EventType "team-tourn"]
[EventCountry "GRE"]
[SourceTitle "playchess.com"]
[Source "ChessBase"]
[SourceQuality "1"]
[WhiteTeam "Sweden"]
[BlackTeam "Greece"]
[WhiteTeamCountry "SWE"]
[BlackTeamCountry "GRE"]
[TimeControl "40/5400+30:1800+30"]

1. e4 {[%emt 0:00:03]} e6 {[%emt 0:00:08]} 2. d4 {[%emt 0:00:31]} d5 {[%emt 0:00:06]} 3. Nc3 {[%emt 0:00:54]} Bb4 {[%emt 0:00:23]} 4. e5 {[%emt 0:00:37]} c5 {[%emt 0:00:12]} 5. a3 {[%emt 0:00:10]} Bxc3+ {[%emt 0:00:11]} 6. bxc3 {[%emt 0:00:03]} Qa5 {[%emt 0:00:11]} 7. Bd2 {[%emt 0:00:53]} Qa4 {[%emt 0:00:10]} 8. Qg4 {[%emt 0:02:49]} g6 {[%emt 0:02:19]} 9. Qd1 {[%emt 0:00:37]} Nc6 {[%emt 0:02:08]} 10. Nf3 {[%emt 0:02:17]} Nge7 {[%emt 0:06:32]} 11. Bd3 {[%emt 0:03:16]} Bd7 {[%emt 0:04:32]} 12. O-O {[%emt 0:02:38]} c4 {[%emt 0:05:45]} 13. Be2 {[%emt 0:00:07]} O-O-O {[%emt 0:03:22]} 14. Bh6 {[%emt 0:03:03]} Rhg8 {[%emt 0:14:47]} 15. Qd2 {[%emt 0:01:51]} g5 {[%emt 0:14:54]} 16. Nxg5 {[%emt 0:02:22]} Rg6 {[%emt 0:10:57]} 17. Nxf7 {[%emt 0:00:39]} Rdg8 {[%emt 0:00:20]} 18. g3 {[%emt 0:01:01]} Nf5 {[%emt 0:10:29]} 19. Bh5 {[%emt 0:01:50]} Rxh6 {[%emt 0:03:23]} 20. Nxh6 {[%emt 0:00:11]} Nxh6 {[%emt 0:00:20]} 21. Qxh6 {[%emt 0:00:04]} Qxc2 {[%emt 0:00:22]} 22. Bf7 {[%emt 0:05:52]} Rd8 {[%emt 0:01:07]} 23. Rac1 {[%emt 0:01:01]} Qf5 {[%emt 0:01:05]} 24. Qh5 {[%emt 0:00:42]} Qe4 {[%emt 0:00:58]} 25. Rfe1 {[%emt 0:00:13]} Qd3 {[%emt 0:00:37]} 26. Qg4 {[%emt 0:01:14]} Rf8 {[%emt 0:02:37]} 27. Bxe6 {[%emt 0:01:58]} Nb8 {[%emt 0:00:43]} 28. Bxd7+ {[%emt 0:00:09]} Nxd7 {[%emt 0:00:06]} 29. e6 {[%emt 0:00:37]} Nf6 {[%emt 0:00:29]} 30. e7+ {[%emt 0:00:42]} Nxg4 {[%emt 0:00:23]} 31. exf8=Q+ {[%emt 0:00:08]} 1-0

[Event "EYTCC Open U18 2022"]
[Site "Thessaloniki"]
[Date "2022.07.12"]
[Round "1.33"]
[White "Yaniv, Yuval"]
[Black "Magalakis, Stefanos"]
[Result "1-0"]
[ECO "C76"]
[WhiteElo "2305"]
[BlackElo "2181"]
[Annotator "ChessBase"]
[PlyCount "41"]
[EventDate "2022.07.12"]
[EventType "team-tourn"]
[EventCountry "GRE"]
[SourceTitle "playchess.com"]
[Source "ChessBase"]
[SourceQuality "1"]
[WhiteTeam "Israel"]
[BlackTeam "Greece"]
[WhiteTeamCountry "ISR"]
[BlackTeamCountry "GRE"]
[TimeControl "40/5400+30:1800+30"]

1. e4 {[%emt 0:00:09]} e5 {[%emt 0:00:12]} 2. Nf3 {[%emt 0:00:16]} Nc6 {[%emt 0:00:06]} 3. Bb5 {[%emt 0:00:12]} a6 {[%emt 0:00:18]} 4. Ba4 {[%emt 0:00:09]} d6 {[%emt 0:00:32]} 5. c3 {[%emt 0:00:41]} Bd7 {[%emt 0:00:33]} 6. d4 {[%emt 0:00:15]} g6 {[%emt 0:00:56]} 7. O-O {[%emt 0:01:08]} Bg7 {[%emt 0:01:33]} 8. Re1 {[%emt 0:01:27]} b5 {[%emt 0:06:18]} 9. Bc2 {[%emt 0:06:58]} Nf6 {[%emt 0:02:22]} 10. Be3 {[%emt 0:02:00]} O-O {[%emt 0:04:06]} 11. h3 {[%emt 0:02:29]} Re8 {[%emt 0:08:57]} 12. Nbd2 {[%emt 0:00:41]} Qc8 {[%emt 0:07:49]} 13. dxe5 {[%emt 0:06:15]} Nxe5 {[%emt 0:00:45]} 14. Nxe5 {[%emt 0:00:13]} dxe5 {[%emt 0:07:39]} 15. Nb3 {[%emt 0:07:26]} Bc6 {[%emt 0:00:08]} 16. Qf3 {[%emt 0:14:54]} a5 {[%emt 0:06:36]} 17. Nc5 {[%emt 0:02:08]} a4 {[%emt 0:03:44]} 18. b4 {[%emt 0:03:14]} Nd7 {[%emt 0:03:41]} 19. a3 {[%emt 0:03:24]} Nxc5 {[%emt 0:03:56]} 20. Bxc5 {[%emt 0:00:04]} Qe6 {[%emt 0:06:03]} 21. Qe2 {[%emt 0:05:36]} 1-0